[Event "FIDE World Senior-50 CC 2023"]
[Site "Terrasini"]
[Date "2023.11.02"]
[Round "8.6"]
[White "Cabe, Arlan"]
[Black "Vlassov, Nikolai"]
[Result "1-0"]
[ECO "A22"]
[WhiteElo "2303"]
[BlackElo "2283"]
[Annotator "ChessBase"]
[PlyCount "165"]
[EventDate "2023.10.22"]
[EventType "swiss"]
[EventCountry "ITA"]
[SourceTitle "playchess.com"]
[Source "ChessBase"]
[SourceQuality "1"]
[TimeControl "40/5400+30:1800+30"]

1. c4 {[%emt 0:00:21]} e5 {[%emt 0:00:31]} 2. Nc3 {[%emt 0:00:27]} Nf6 {[%emt 0:00:10]} 3. Nf3 {[%emt 0:01:08]} e4 {[%emt 0:00:10]} 4. Ng5 {[%emt 0:01:34]} c6 {[%emt 0:00:18]} 5. d3 {[%emt 0:03:45]} d5 {[%emt 0:01:06]} 6. cxd5 {[%emt 0:04:58]} cxd5 {[%emt 0:00:14]} 7. dxe4 {[%emt 0:00:44]} d4 {[%emt 0:02:23]} 8. Qb3 {[%emt 0:02:13]} Qd7 {[%emt 0:05:05]} 9. Nd5 {[%emt 0:18:23]} Nc6 {[%emt 0:09:02]} 10. Bd2 {[%emt 0:29:27]} Be7 {[%emt 0:14:33]} 11. g3 {[%emt 0:05:22]} O-O {[%emt 0:02:24]} 12. Bg2 {[%emt 0:00:39]} h6 {[%emt 0:02:31]} 13. Nh3 {[%emt 0:01:53]} Nxe4 {[%emt 0:15:19]} 14. Bxe4 {[%emt 0:00:28]} Qxh3 {[%emt 0:00:07]} 15. Nf4 {[%emt 0:00:43]} Qd7 {[%emt 0:01:35]} 16. O-O {[%emt 0:01:31]} Bg5 {[%emt 0:03:01]} 17. Rfd1 {[%emt 0:04:41]} Re8 {[%emt 0:04:24]} 18. Bf3 {[%emt 0:04:04]} b6 {[%emt 0:04:37]} 19. Rac1 {[%emt 0:04:14]} Bb7 {[%emt 0:00:08]} 20. Qb5 {[%emt 0:03:24]} Rac8 {[%emt 0:01:26]} 21. Nd3 {[%emt 0:00:27]} Bd8 {[%emt 0:07:49]} 22. Nb4 {[%emt 0:04:11]} a6 {[%emt 0:08:13]} 23. Nxa6 {[%emt 0:01:44]} Re5 {[%emt 0:01:39]} 24. Bxc6 {[%emt 0:00:52]} Qxc6 {[%emt 0:00:13]} 25. Qxc6 {[%emt 0:01:44]} Rxc6 {[%emt 0:00:19]} 26. Rxc6 {[%emt 0:00:21]} Bxc6 {[%emt 0:00:03]} 27. Nb4 {[%emt 0:01:16]} Bd7 {[%emt 0:07:25]} 28. Be3 {[%emt 0:01:01]} dxe3 {[%emt 0:00:24]} 29. Rxd7 {[%emt 0:00:04]} Bf6 {[%emt 0:01:37]} 30. Nd5 {[%emt 0:01:26]} exf2+ {[%emt 0:00:20]} 31. Kf1 {[%emt 0:00:09]} Rf5 {[%emt 0:01:52]} 32. Nxf6+ {[%emt 0:01:10]} Rxf6 {[%emt 0:00:03]} 33. Rd3 {[%emt 0:00:20]} Kf8 {[%emt 0:02:06]} 34. Rf3 {[%emt 0:00:14]} Rc6 {[%emt 0:00:34]} 35. Kxf2 {[%emt 0:00:06]} Ke7 {[%emt 0:00:06]} 36. Rf5 {[%emt 0:00:38]} g6 {[%emt 0:01:03]} 37. Rd5 {[%emt 0:00:39]} Ke6 {[%emt 0:00:13]} 38. Rb5 {[%emt 0:00:22]} Kd7 {[%emt 0:00:08]} 39. Ke3 {[%emt 0:00:26]} Re6+ {[%emt 0:00:38]} 40. Kd3 {[%emt 0:00:20]} Rf6 {[%emt 0:01:04]} 41. Rb4 {[%emt 0:30:20]} g5 {[%emt 0:30:54]} 42. h4 {[%emt 0:01:39]} Kc6 {[%emt 0:03:31]} 43. hxg5 {[%emt 0:00:57]} hxg5 {[%emt 0:00:02]} 44. Rc4+ {[%emt 0:01:20]} Kd6 {[%emt 0:00:45]} 45. a4 {[%emt 0:00:35]} Rf1 {[%emt 0:00:43]} 46. Rb4 {[%emt 0:00:39]} Kc6 {[%emt 0:00:12]} 47. Rb5 {[%emt 0:00:00]} f5 {[%emt 0:00:00]} 48. b3 {[%emt 0:00:00]} Rg1 {[%emt 0:00:00]} 49. Rxf5 {[%emt 0:00:00]} Rxg3+ {[%emt 0:00:00]} 50. e3 {[%emt 0:00:00]} Rg1 {[%emt 0:00:00]} 51. Rf6+ {[%emt 0:00:00]} Kc5 {[%emt 0:00:00]} 52. Rf5+ {[%emt 0:00:00]} Kc6 {[%emt 0:00:00]} 53. b4 {[%emt 0:00:00]} g4 {[%emt 0:00:00]} 54. Rf6+ {[%emt 0:00:00]} Kc7 {[%emt 0:00:00]} 55. Rg6 {[%emt 0:00:00]} Ra1 {[%emt 0:00:00]} 56. Rxg4 {[%emt 0:00:00]} Rxa4 {[%emt 0:00:00]} 57. Kc4 {[%emt 0:00:18]} Ra3 {[%emt 0:00:00]} 58. Rg7+ {[%emt 0:01:05]} Kc6 {[%emt 0:00:00]} 59. Rg6+ {[%emt 0:00:34]} Kc7 {[%emt 0:00:00]} 60. Re6 {[%emt 0:01:44]} Kd7 {[%emt 0:00:00]} 61. Re4 {[%emt 0:00:41]} Kc6 {[%emt 0:00:00]} 62. Re6+ {[%emt 0:02:03]} Kd7 {[%emt 0:00:00]} 63. Re5 {[%emt 0:00:27]} Kd6 {[%emt 0:00:00]} 64. Rd5+ {[%emt 0:00:33]} Kc7 {[%emt 0:00:00]} 65. Rd3 {[%emt 0:01:16]} Ra1 {[%emt 0:00:00]} 66. Kd5 {[%emt 0:00:51]} Ra8 {[%emt 0:00:00]} 67. Rc3+ {[%emt 0:00:41]} Kb7 {[%emt 0:00:00]} 68. e4 {[%emt 0:00:26]} Rd8+ {[%emt 0:00:02]} 69. Kc4 {[%emt 0:00:19]} Rc8+ {[%emt 0:00:28]} 70. Kd4 {[%emt 0:00:16]} Rd8+ {[%emt 0:00:02]} 71. Ke3 {[%emt 0:00:15]} Ka6 {[%emt 0:00:17]} 72. Rd3 {[%emt 0:00:21]} Rc8 {[%emt 0:00:44]} 73. Rd5 {[%emt 0:00:38]} Rc4 {[%emt 0:00:29]} 74. b5+ {[%emt 0:00:48]} Ka5 {[%emt 0:00:23]} 75. e5 {[%emt 0:00:15]} Rc1 {[%emt 0:00:47]} 76. Kf4 {[%emt 0:00:15]} Rf1+ {[%emt 0:01:45]} 77. Kg5 {[%emt 0:00:16]} Kb4 {[%emt 0:00:57]} 78. e6 {[%emt 0:00:21]} Kc4 {[%emt 0:00:22]} 79. Re5 {[%emt 0:00:46]} Kd4 {[%emt 0:00:09]} 80. Re2 {[%emt 0:01:15]} Kd3 {[%emt 0:00:13]} 81. e7 {[%emt 0:00:41]} Kxe2 {[%emt 0:00:14]} 82. e8=Q+ {[%emt 0:00:07]} Kd3 {[%emt 0:00:05]} 83. Qc6 {[%emt 0:00:12]} 1-0

[Event "FIDE World Senior-50 CC 2023"]
[Site "Terrasini"]
[Date "2023.11.02"]
[Round "8.7"]
[White "Godena, Michele"]
[Black "Degraeve, Jean-Marc"]
[Result "1/2-1/2"]
[ECO "B22"]
[WhiteElo "2441"]
[BlackElo "2479"]
[Annotator "ChessBase"]
[PlyCount "49"]
[EventDate "2023.10.22"]
[EventType "swiss"]
[EventCountry "ITA"]
[SourceTitle "playchess.com"]
[Source "ChessBase"]
[SourceQuality "1"]
[TimeControl "40/5400+30:1800+30"]

1. e4 {[%emt 0:00:03]} c5 {[%emt 0:01:07]} 2. c3 {[%emt 0:00:37]} Nf6 {[%emt 0:00:21]} 3. e5 {[%emt 0:00:10]} Nd5 {[%emt 0:00:09]} 4. Nf3 {[%emt 0:00:48]} e6 {[%emt 0:00:22]} 5. Bc4 {[%emt 0:00:38]} d6 {[%emt 0:00:59]} 6. d4 {[%emt 0:00:43]} cxd4 {[%emt 0:00:13]} 7. cxd4 {[%emt 0:00:09]} Be7 {[%emt 0:01:05]} 8. O-O {[%emt 0:00:13]} O-O {[%emt 0:00:09]} 9. Qe2 {[%emt 0:01:09]} Nc6 {[%emt 0:00:13]} 10. Rd1 {[%emt 0:08:32]} Na5 {[%emt 0:02:40]} 11. Bd3 {[%emt 0:13:01]} Nb4 {[%emt 0:00:55]} 12. exd6 {[%emt 0:17:21]} Qxd6 {[%emt 0:02:17]} 13. Nc3 {[%emt 0:04:10]} Nxd3 {[%emt 0:01:37]} 14. Qxd3 {[%emt 0:49:56]} Nc6 {[%emt 0:18:38]} 15. d5 {[%emt 0:00:00]} Nb4 {[%emt 0:08:41]} 16. Qe4 {[%emt 0:00:00]} f5 {[%emt 0:01:03]} 17. Qe2 {[%emt 0:00:00]} Nxd5 {[%emt 0:06:13]} 18. Nxd5 {[%emt 0:00:00]} exd5 {[%emt 0:00:04]} 19. Bf4 {[%emt 0:00:00]} Qxf4 {[%emt 0:04:34]} 20. Qxe7 {[%emt 0:00:00]} Qe4 {[%emt 0:01:24]} 21. Re1 {[%emt 0:00:00]} Qxe7 {[%emt 0:00:43]} 22. Rxe7 {[%emt 0:00:00]} Rf7 {[%emt 0:03:42]} 23. Re8+ {[%emt 0:00:00]} Rf8 {[%emt 0:00:08]} 24. Re7 {[%emt 0:00:00]} Rf7 {[%emt 0:00:31]} 25. Re8+ {[%emt 0:00:00]} 1/2-1/2

[Event "FIDE World Senior-50 CC 2023"]
[Site "Terrasini"]
[Date "2023.11.02"]
[Round "8.8"]
[White "Stets, Vasyl"]
[Black "Sturua, Zurab"]
[Result "0-1"]
[ECO "A47"]
[WhiteElo "2169"]
[BlackElo "2514"]
[Annotator "ChessBase"]
[PlyCount "150"]
[EventDate "2023.10.22"]
[EventType "swiss"]
[EventCountry "ITA"]
[SourceTitle "playchess.com"]
[Source "ChessBase"]
[SourceQuality "1"]
[TimeControl "40/5400+30:1800+30"]

1. d4 {[%emt 0:00:07]} c5 {[%emt 0:00:20]} 2. c3 {[%emt 0:02:00]} Nf6 {[%emt 0:01:23]} 3. Nf3 {[%emt 0:00:27]} e6 {[%emt 0:00:33]} 4. g3 {[%emt 0:00:17]} b6 {[%emt 0:04:27]} 5. Bg2 {[%emt 0:00:25]} Bb7 {[%emt 0:00:06]} 6. O-O {[%emt 0:00:26]} Be7 {[%emt 0:00:28]} 7. Nbd2 {[%emt 0:08:50]} O-O {[%emt 0:01:45]} 8. Re1 {[%emt 0:01:25]} d5 {[%emt 0:09:33]} 9. Ne5 {[%emt 0:01:36]} Na6 {[%emt 0:00:20]} 10. a3 {[%emt 0:30:56]} Nc7 {[%emt 0:07:34]} 11. b4 {[%emt 0:00:05]} cxd4 {[%emt 0:07:48]} 12. cxd4 {[%emt 0:00:05]} Nb5 {[%emt 0:00:17]} 13. Bb2 {[%emt 0:00:48]} Rc8 {[%emt 0:03:34]} 14. Qb3 {[%emt 0:03:04]} Ne4 {[%emt 0:00:43]} 15. Qd3 {[%emt 0:05:14]} Nbd6 {[%emt 0:08:53]} 16. Rac1 {[%emt 0:01:24]} f6 {[%emt 0:01:33]} 17. Rxc8 {[%emt 0:01:48]} Qxc8 {[%emt 0:00:34]} 18. Rc1 {[%emt 0:00:21]} Qe8 {[%emt 0:02:06]} 19. Nef3 {[%emt 0:01:23]} Qd7 {[%emt 0:04:44]} 20. Bh3 {[%emt 0:05:31]} Nf7 {[%emt 0:12:52]} 21. b5 {[%emt 0:06:27]} Rc8 {[%emt 0:00:41]} 22. Rxc8+ {[%emt 0:00:24]} Qxc8 {[%emt 0:00:05]} 23. a4 {[%emt 0:00:33]} f5 {[%emt 0:03:09]} 24. Bf1 {[%emt 0:12:42]} Qc7 {[%emt 0:06:21]} 25. Ba3 {[%emt 0:09:27]} Kf8 {[%emt 0:04:14]} 26. Bb2 {[%emt 0:01:49]} g5 {[%emt 0:04:36]} 27. e3 {[%emt 0:03:03]} Bd6 {[%emt 0:01:39]} 28. Ne1 {[%emt 0:01:30]} Bb4 {[%emt 0:01:31]} 29. Nxe4 {[%emt 0:01:46]} dxe4 {[%emt 0:00:44]} 30. Qc2 {[%emt 0:00:23]} Qe7 {[%emt 0:04:09]} 31. Qc1 {[%emt 0:00:14]} Bd5 {[%emt 0:00:34]} 32. Nc2 {[%emt 0:00:14]} Bd6 {[%emt 0:00:19]} 33. Na1 {[%emt 0:00:24]} h5 {[%emt 0:04:24]} 34. Bc4 {[%emt 0:00:18]} Qc7 {[%emt 0:00:43]} 35. Bxd5 {[%emt 0:00:19]} Qxc1+ {[%emt 0:01:07]} 36. Bxc1 {[%emt 0:00:02]} exd5 {[%emt 0:04:41]} 37. Nc2 {[%emt 0:00:23]} Ke7 {[%emt 0:00:00]} 38. Kf1 {[%emt 0:00:27]} Ke6 {[%emt 0:00:00]} 39. Ke2 {[%emt 0:00:15]} h4 {[%emt 0:00:00]} 40. Bd2 {[%emt 0:01:52]} h3 {[%emt 0:00:00]} 41. Kf1 {[%emt 0:14:20]} Kd7 {[%emt 0:06:30]} 42. Ke2 {[%emt 0:03:27]} Nd8 {[%emt 0:03:06]} 43. Bb4 {[%emt 0:02:28]} Bc7 {[%emt 0:02:19]} 44. Bd2 {[%emt 0:00:25]} Bb8 {[%emt 0:03:49]} 45. Kf1 {[%emt 0:01:32]} Bd6 {[%emt 0:00:39]} 46. Bb4 {[%emt 0:01:28]} Bc7 {[%emt 0:05:24]} 47. Bd2 {[%emt 0:00:18]} Ne6 {[%emt 0:01:41]} 48. Nb4 {[%emt 0:02:31]} Kd6 {[%emt 0:00:04]} 49. Bc1 {[%emt 0:00:28]} Nd8 {[%emt 0:02:46]} 50. Ba3 {[%emt 0:01:10]} Ke6 {[%emt 0:00:09]} 51. Na6 {[%emt 0:00:27]} Kd7 {[%emt 0:00:48]} 52. Nb4 {[%emt 0:02:23]} Bd6 {[%emt 0:00:47]} 53. Nc2 {[%emt 0:00:01]} Ne6 {[%emt 0:00:46]} 54. Bxd6 {[%emt 0:01:02]} Kxd6 {[%emt 0:00:04]} 55. Ke2 {[%emt 0:00:38]} Nd8 {[%emt 0:04:22]} 56. Nb4 {[%emt 0:02:30]} Nf7 {[%emt 0:00:39]} 57. Nc6 {[%emt 0:00:25]} a5 {[%emt 0:00:25]} 58. Ke1 {[%emt 0:00:30]} f4 {[%emt 0:02:28]} 59. Ke2 {[%emt 0:01:05]} fxg3 {[%emt 0:00:53]} 60. fxg3 {[%emt 0:00:03]} Ke6 {[%emt 0:00:06]} 61. Kf2 {[%emt 0:00:24]} g4 {[%emt 0:00:50]} 62. Kf1 {[%emt 0:03:30]} Kf6 {[%emt 0:01:46]} 63. Kf2 {[%emt 0:00:12]} Ke6 {[%emt 0:00:32]} 64. Kf1 {[%emt 0:00:02]} Kd7 {[%emt 0:00:18]} 65. Kf2 {[%emt 0:00:06]} Kd6 {[%emt 0:00:24]} 66. Ke2 {[%emt 0:00:45]} Ke6 {[%emt 0:00:55]} 67. Kf2 {[%emt 0:00:13]} Ng5 {[%emt 0:01:11]} 68. Ne5 {[%emt 0:00:06]} Nf3 {[%emt 0:00:05]} 69. Nxg4 {[%emt 0:00:29]} Kf5 {[%emt 0:00:05]} 70. Ne5 {[%emt 0:02:41]} Nxh2 {[%emt 0:00:34]} 71. Nd7 {[%emt 0:00:05]} Ng4+ {[%emt 0:00:17]} 72. Kg1 {[%emt 0:00:04]} Nxe3 {[%emt 0:00:38]} 73. Nxb6 {[%emt 0:00:40]} Ke6 {[%emt 0:00:53]} 74. Kh2 {[%emt 0:01:16]} Ng4+ {[%emt 0:00:31]} 75. Kxh3 {[%emt 0:00:21]} e3 {[%emt 0:00:12]} 0-1

[Event "FIDE World Senior-50 CC 2023"]
[Site "Terrasini"]
[Date "2023.11.02"]
[Round "8.9"]
[White "Plotkin, Victor"]
[Black "Matamoros Franco, Carlos S."]
[Result "1/2-1/2"]
[ECO "B11"]
[WhiteElo "2229"]
[BlackElo "2455"]
[Annotator "ChessBase"]
[PlyCount "87"]
[EventDate "2023.10.22"]
[EventType "swiss"]
[EventCountry "ITA"]
[SourceTitle "playchess.com"]
[Source "ChessBase"]
[SourceQuality "1"]
[TimeControl "40/5400+30:1800+30"]

1. e4 {[%emt 0:00:02]} c6 {[%emt 0:00:14]} 2. Nc3 {[%emt 0:00:17]} d5 {[%emt 0:00:20]} 3. Nf3 {[%emt 0:00:18]} dxe4 {[%emt 0:00:22]} 4. Nxe4 {[%emt 0:00:06]} Nf6 {[%emt 0:00:07]} 5. Qe2 {[%emt 0:00:56]} Na6 {[%emt 0:05:14]} 6. d4 {[%emt 0:05:12]} Nxe4 {[%emt 0:00:30]} 7. Qxe4 {[%emt 0:00:12]} Qd5 {[%emt 0:00:06]} 8. Qxd5 {[%emt 0:02:25]} cxd5 {[%emt 0:00:04]} 9. Bf4 {[%emt 0:08:51]} f6 {[%emt 0:09:32]} 10. c4 {[%emt 0:05:15]} Nb4 {[%emt 0:09:41]} 11. Kd2 {[%emt 0:02:45]} g5 {[%emt 0:06:55]} 12. Be3 {[%emt 0:02:42]} e6 {[%emt 0:00:46]} 13. h4 {[%emt 0:17:21]} g4 {[%emt 0:00:55]} 14. Ne1 {[%emt 0:00:30]} Kf7 {[%emt 0:16:52]} 15. a3 {[%emt 0:11:37]} Nc6 {[%emt 0:00:04]} 16. cxd5 {[%emt 0:05:06]} Na5 {[%emt 0:20:53]} 17. Kc3 {[%emt 0:07:25]} exd5 {[%emt 0:04:19]} 18. b4 {[%emt 0:00:48]} Nc4 {[%emt 0:00:02]} 19. Bxc4 {[%emt 0:06:11]} dxc4 {[%emt 0:00:04]} 20. Kxc4 {[%emt 0:00:37]} Be6+ {[%emt 0:06:31]} 21. Kc3 {[%emt 0:01:12]} Bd6 {[%emt 0:00:56]} 22. Nd3 {[%emt 0:01:19]} Bd5 {[%emt 0:00:16]} 23. Bf4 {[%emt 0:03:49]} Be7 {[%emt 0:00:07]} 24. Rhg1 {[%emt 0:01:10]} a5 {[%emt 0:00:24]} 25. g3 {[%emt 0:02:47]} Rhc8+ {[%emt 0:02:37]} 26. Kd2 {[%emt 0:02:24]} Rc4 {[%emt 0:04:07]} 27. Be3 {[%emt 0:00:41]} axb4 {[%emt 0:01:00]} 28. axb4 {[%emt 0:01:14]} Rxa1 {[%emt 0:00:41]} 29. Rxa1 {[%emt 0:00:01]} Bxb4+ {[%emt 0:00:07]} 30. Nxb4 {[%emt 0:00:23]} Rxb4 {[%emt 0:00:04]} 31. Kc3 {[%emt 0:02:12]} Rc4+ {[%emt 0:04:54]} 32. Kd3 {[%emt 0:00:14]} Rb4 {[%emt 0:00:54]} 33. h5 {[%emt 0:01:07]} Rb3+ {[%emt 0:01:16]} 34. Kc2 {[%emt 0:00:34]} Rb5 {[%emt 0:02:27]} 35. h6 {[%emt 0:00:46]} Rb6 {[%emt 0:02:51]} 36. Ra5 {[%emt 0:01:52]} Ke6 {[%emt 0:00:15]} 37. Ra8 {[%emt 0:00:45]} Ra6 {[%emt 0:00:22]} 38. Rg8 {[%emt 0:02:38]} Be4+ {[%emt 0:01:07]} 39. Kc3 {[%emt 0:00:49]} Bg6 {[%emt 0:00:24]} 40. Rg7 {[%emt 0:00:44]} Rc6+ {[%emt 0:01:14]} 41. Kb4 {[%emt 0:30:37]} b6 {[%emt 0:03:31]} 42. Rb7 {[%emt 0:00:00]} Bd3 {[%emt 0:01:56]} 43. Rg7 {[%emt 0:00:00]} Bg6 {[%emt 0:00:07]} 44. Rb7 {[%emt 0:00:00]} 1/2-1/2

[Event "FIDE World Senior-50 CC 2023"]
[Site "Terrasini"]
[Date "2023.11.02"]
[Round "8.10"]
[White "Mrva, Martin"]
[Black "Cummings, David H."]
[Result "1/2-1/2"]
[ECO "C54"]
[WhiteElo "2366"]
[BlackElo "2325"]
[Annotator "ChessBase"]
[PlyCount "86"]
[EventDate "2023.10.22"]
[EventType "swiss"]
[EventCountry "ITA"]
[SourceTitle "playchess.com"]
[Source "ChessBase"]
[SourceQuality "1"]
[TimeControl "40/5400+30:1800+30"]

1. e4 {[%emt 0:00:12]} e5 {[%emt 0:00:14]} 2. Nf3 {[%emt 0:00:09]} Nc6 {[%emt 0:00:07]} 3. Bc4 {[%emt 0:00:11]} Nf6 {[%emt 0:00:15]} 4. d3 {[%emt 0:00:18]} Bc5 {[%emt 0:00:15]} 5. O-O {[%emt 0:00:56]} d6 {[%emt 0:00:49]} 6. c3 {[%emt 0:00:35]} a6 {[%emt 0:00:10]} 7. a4 {[%emt 0:01:25]} Ba7 {[%emt 0:00:35]} 8. Re1 {[%emt 0:04:30]} O-O {[%emt 0:00:33]} 9. h3 {[%emt 0:00:19]} h6 {[%emt 0:00:19]} 10. Nbd2 {[%emt 0:00:42]} Re8 {[%emt 0:01:37]} 11. Nf1 {[%emt 0:11:28]} Be6 {[%emt 0:00:57]} 12. Bxe6 {[%emt 0:02:19]} Rxe6 {[%emt 0:00:15]} 13. Ng3 {[%emt 0:00:19]} d5 {[%emt 0:03:44]} 14. Qe2 {[%emt 0:00:38]} Qd7 {[%emt 0:03:26]} 15. b4 {[%emt 0:24:11]} Rd8 {[%emt 0:08:50]} 16. Qb2 {[%emt 0:05:00]} Ne7 {[%emt 0:08:02]} 17. b5 {[%emt 0:06:56]} dxe4 {[%emt 0:09:34]} 18. dxe4 {[%emt 0:00:09]} axb5 {[%emt 0:00:09]} 19. axb5 {[%emt 0:00:14]} Bc5 {[%emt 0:00:26]} 20. Be3 {[%emt 0:05:46]} Bxe3 {[%emt 0:04:52]} 21. Rxe3 {[%emt 0:00:06]} Ng6 {[%emt 0:02:33]} 22. c4 {[%emt 0:00:20]} c6 {[%emt 0:08:35]} 23. Rb3 {[%emt 0:03:28]} Qd6 {[%emt 0:04:36]} 24. Ra7 {[%emt 0:04:46]} b6 {[%emt 0:05:44]} 25. Kh2 {[%emt 0:09:06]} Qc5 {[%emt 0:12:07]} 26. Qa3 {[%emt 0:00:47]} Qxc4 {[%emt 0:03:50]} 27. Ra4 {[%emt 0:00:51]} Qc2 {[%emt 0:06:03]} 28. Rb2 {[%emt 0:00:35]} Qd1 {[%emt 0:01:36]} 29. Ra8 {[%emt 0:00:25]} Kh7 {[%emt 0:00:49]} 30. Rxd8 {[%emt 0:01:33]} Qxd8 {[%emt 0:00:05]} 31. Rd2 {[%emt 0:01:13]} Qf8 {[%emt 0:03:11]} 32. Qa7 {[%emt 0:03:35]} cxb5 {[%emt 0:00:47]} 33. Qc7 {[%emt 0:00:30]} Qe7 {[%emt 0:02:04]} 34. Qc8 {[%emt 0:00:40]} Qc5 {[%emt 0:00:37]} 35. Qa6 {[%emt 0:01:34]} b4 {[%emt 0:04:29]} 36. Qa2 {[%emt 0:01:52]} b5 {[%emt 0:01:16]} 37. Rc2 {[%emt 0:00:28]} Qb6 {[%emt 0:00:57]} 38. Qb3 {[%emt 0:00:17]} Qa5 {[%emt 0:01:13]} 39. Ra2 {[%emt 0:00:19]} Qc7 {[%emt 0:00:18]} 40. Qxb4 {[%emt 0:00:17]} Rb6 {[%emt 0:02:27]} 41. Rd2 {[%emt 0:36:46]} Qc4 {[%emt 0:09:47]} 42. Qxc4 {[%emt 0:00:00]} bxc4 {[%emt 0:00:04]} 43. Rc2 {[%emt 0:00:00]} Rc6 {[%emt 0:01:06]} 1/2-1/2

[Event "FIDE World Senior-50 CC 2023"]
[Site "Terrasini"]
[Date "2023.11.02"]
[Round "8.11"]
[White "Vinter-Schou, Uffe"]
[Black "Boulard, Eric"]
[Result "1/2-1/2"]
[ECO "B13"]
[WhiteElo "2345"]
[BlackElo "2181"]
[Annotator "ChessBase"]
[PlyCount "80"]
[EventDate "2023.10.22"]
[EventType "swiss"]
[EventCountry "ITA"]
[SourceTitle "playchess.com"]
[Source "ChessBase"]
[SourceQuality "1"]
[TimeControl "40/5400+30:1800+30"]

1. e4 {[%emt 0:00:03]} c6 {[%emt 0:01:04]} 2. d4 {[%emt 0:00:11]} d5 {[%emt 0:00:06]} 3. exd5 {[%emt 0:01:57]} cxd5 {[%emt 0:00:51]} 4. Bd3 {[%emt 0:00:16]} Nc6 {[%emt 0:00:18]} 5. c3 {[%emt 0:00:18]} Nf6 {[%emt 0:02:11]} 6. h3 {[%emt 0:00:10]} e5 {[%emt 0:01:37]} 7. dxe5 {[%emt 0:00:21]} Nxe5 {[%emt 0:00:20]} 8. Bc2 {[%emt 0:01:02]} Bc5 {[%emt 0:11:58]} 9. Ne2 {[%emt 0:00:37]} O-O {[%emt 0:09:32]} 10. O-O {[%emt 0:01:00]} Ne4 {[%emt 0:07:37]} 11. Bf4 {[%emt 0:18:14]} Ng6 {[%emt 0:11:30]} 12. Nd2 {[%emt 0:00:40]} Qf6 {[%emt 0:28:06]} 13. Bxe4 {[%emt 0:02:24]} Nxf4 {[%emt 0:02:31]} 14. Nxf4 {[%emt 0:01:20]} dxe4 {[%emt 0:09:34]} 15. Nxe4 {[%emt 0:01:08]} Qxf4 {[%emt 0:00:11]} 16. Nxc5 {[%emt 0:00:05]} Bxh3 {[%emt 0:00:17]} 17. Nd3 {[%emt 0:00:31]} Qg5 {[%emt 0:00:33]} 18. Qf3 {[%emt 0:00:30]} Bf5 {[%emt 0:02:20]} 19. Ne5 {[%emt 0:01:36]} Be6 {[%emt 0:03:41]} 20. Rfe1 {[%emt 0:00:33]} Rad8 {[%emt 0:00:29]} 21. c4 {[%emt 0:18:08]} Qe7 {[%emt 0:01:42]} 22. Qe3 {[%emt 0:03:23]} a6 {[%emt 0:01:01]} 23. b3 {[%emt 0:03:52]} Rfe8 {[%emt 0:00:28]} 24. Nf3 {[%emt 0:04:43]} Qc7 {[%emt 0:00:40]} 25. Nd4 {[%emt 0:03:42]} h6 {[%emt 0:00:12]} 26. Qc3 {[%emt 0:01:17]} Bd7 {[%emt 0:01:54]} 27. b4 {[%emt 0:03:03]} Qf4 {[%emt 0:00:31]} 28. Re2 {[%emt 0:11:14]} Rxe2 {[%emt 0:00:56]} 29. Nxe2 {[%emt 0:00:01]} Qg5 {[%emt 0:00:24]} 30. Rd1 {[%emt 0:02:07]} Bc6 {[%emt 0:01:09]} 31. Rxd8+ {[%emt 0:01:01]} Qxd8 {[%emt 0:00:02]} 32. Nd4 {[%emt 0:00:10]} Qd7 {[%emt 0:00:31]} 33. Qe3 {[%emt 0:00:40]} Qd6 {[%emt 0:00:54]} 34. a3 {[%emt 0:00:31]} Qg6 {[%emt 0:00:36]} 35. f3 {[%emt 0:01:02]} h5 {[%emt 0:00:21]} 36. Qe5 {[%emt 0:02:03]} Kh7 {[%emt 0:01:29]} 37. Kh2 {[%emt 0:04:06]} Bd7 {[%emt 0:00:47]} 38. Qc7 {[%emt 0:01:49]} Bc6 {[%emt 0:00:10]} 39. Nxc6 {[%emt 0:01:25]} bxc6 {[%emt 0:00:12]} 40. a4 {[%emt 0:00:00]} Qg5 {[%emt 0:00:26]} 1/2-1/2

[Event "FIDE World Senior-50 CC 2023"]
[Site "Terrasini"]
[Date "2023.11.02"]
[Round "8.12"]
[White "Paschall, William"]
[Black "Mantovani, Renzo"]
[Result "1-0"]
[ECO "D32"]
[WhiteElo "2329"]
[BlackElo "2236"]
[Annotator "ChessBase"]
[PlyCount "59"]
[EventDate "2023.10.22"]
[EventType "swiss"]
[EventCountry "ITA"]
[SourceTitle "playchess.com"]
[Source "ChessBase"]
[SourceQuality "1"]
[TimeControl "40/5400+30:1800+30"]

1. Nf3 {[%emt 0:00:30]} Nf6 {[%emt 0:03:05]} 2. c4 {[%emt 0:00:00]} c5 {[%emt 0:00:44]} 3. Nc3 {[%emt 0:00:49]} Nc6 {[%emt 0:01:42]} 4. e3 {[%emt 0:01:38]} e6 {[%emt 0:03:41]} 5. d4 {[%emt 0:03:20]} d5 {[%emt 0:00:33]} 6. cxd5 {[%emt 0:02:47]} exd5 {[%emt 0:01:36]} 7. Bb5 {[%emt 0:02:52]} Bd6 {[%emt 0:10:30]} 8. dxc5 {[%emt 0:06:06]} Bxc5 {[%emt 0:02:00]} 9. O-O {[%emt 0:00:29]} O-O {[%emt 0:00:17]} 10. b3 {[%emt 0:19:11]} a6 {[%emt 0:24:10]} 11. Bxc6 {[%emt 0:03:00]} bxc6 {[%emt 0:01:18]} 12. Bb2 {[%emt 0:01:42]} Bg4 {[%emt 0:01:26]} 13. Ne2 {[%emt 0:05:48]} Bxf3 {[%emt 0:10:48]} 14. gxf3 {[%emt 0:00:49]} Qd6 {[%emt 0:01:34]} 15. Kh1 {[%emt 0:06:37]} Ba3 {[%emt 0:02:09]} 16. Bc3 {[%emt 0:04:36]} Bb4 {[%emt 0:00:29]} 17. Bd4 {[%emt 0:05:58]} Bc5 {[%emt 0:04:19]} 18. Rc1 {[%emt 0:00:46]} Bxd4 {[%emt 0:00:23]} 19. Qxd4 {[%emt 0:02:00]} Rfc8 {[%emt 0:01:28]} 20. Rg1 {[%emt 0:04:45]} c5 {[%emt 0:00:49]} 21. Qh4 {[%emt 0:03:01]} g6 {[%emt 0:02:52]} 22. Rcd1 {[%emt 0:04:48]} Rab8 {[%emt 0:01:39]} 23. Nf4 {[%emt 0:01:58]} Rb4 {[%emt 0:04:30]} 24. Qg5 {[%emt 0:04:15]} Qc6 {[%emt 0:10:55]} 25. Nxd5 {[%emt 0:05:22]} Nxd5 {[%emt 0:00:08]} 26. Rxd5 {[%emt 0:01:41]} f6 {[%emt 0:06:26]} 27. Qf5 {[%emt 0:00:55]} c4 {[%emt 0:01:27]} 28. Rd7 {[%emt 0:02:31]} Kf8 {[%emt 0:01:09]} 29. Qh3 {[%emt 0:00:24]} cxb3 {[%emt 0:01:46]} 30. Rxh7 {[%emt 0:02:18]} 1-0